bitfinex/quotes_SOLUSD_20230904
["timestamp","ask_amount","ask_price","bid_price","bid_amount"]
[1693804799150,18.40994988,19.758,19.741,55.0]
[1693804819082,44.85570241,19.758,19.741,55.0]
[1693804821883,18.40994988,19.758,19.741,55.0]
[1693804830789,98.9258492,19.758,19.741,55.0]
[1693804830984,18.40994988,19.757,19.741,55.0]
[1693804832391,26.44699564,19.756,19.741,55.0]
[1693804835297,42.3044977,19.758,19.741,55.0]
[1693804838286,114.7464,19.759,19.741,55.0]
[1693804838487,20.0,19.759,19.741,55.0]
[1693804848687,25.63,19.75,19.731,15.25683889]
[1693804848889,20.0,19.749,19.73,25.63]
[1693804849096,46.30894988,19.749,19.73,25.63]
[1693804849285,38.40994988,19.749,19.73,25.63]
[1693804849493,25.63,19.74,19.727,25.63]
[1693804849698,25.63,19.74,19.72,25.63]
[1693804849901,20.0,19.739,19.721,11.72989]
[1693804850490,20.0,19.739,19.721,37.35989]
[1693804851296,20.0,19.739,19.722,55.0]
[1693804852006,20.0,19.739,19.721,37.35989]
[1693804853495,20.0,19.739,19.722,55.0]
[1693804853997,25.63,19.74,19.722,55.0]
[1693804854207,20.0,19.739,19.722,55.0]
[1693804858705,20.0,19.739,19.723,11.7287]
[1693804858908,20.0,19.739,19.724,55.0]
[1693804859106,20.0,19.742,19.724,55.0]
[1693804859500,15.36948808,19.743,19.724,55.0]
[1693804859700,20.0,19.742,19.724,55.0]
[1693804859898,20.0,19.744,19.724,55.0]
[1693804860309,20.0,19.745,19.724,55.0]
[1693804861493,60.92448048,19.745,19.724,55.0]
[1693804862710,60.92448048,19.745,19.724,66.72811]
[1693804863110,76.14495691,19.745,19.724,66.72811]
[1693804864603,84.04495691,19.745,19.724,66.72811]
[1693804865810,102.45490679,19.745,19.724,66.72811]
[1693804871818,102.45490679,19.745,19.725,11.72751]
[1693804872116,102.45490679,19.745,19.726,55.0]
[1693804872317,94.55490679,19.745,19.726,55.0]
[1693804873611,102.45490679,19.745,19.726,55.0]
[1693804874020,25.63,19.74,19.726,55.0]
[1693804874518,20.0,19.739,19.726,55.0]
[1693804875118,20.0,19.744,19.726,55.0]
[1693804875522,27.901,19.744,19.726,55.0]
[1693804882521,20.0,19.744,19.726,55.0]
[1693804884925,27.901,19.744,19.726,55.0]
[1693804885133,46.31094988,19.744,19.726,55.0]
[1693804891531,38.40994988,19.744,19.726,55.0]
[1693804894432,20.0,19.744,19.726,55.0]
[1693804896219,27.901,19.744,19.726,55.0]
[1693804899326,20.0,19.744,19.726,55.0]
[1693804899533,20.0,19.744,19.73,25.63]
[1693804899734,20.0,19.744,19.731,55.0]
[1693804900731,27.901,19.744,19.731,55.0]
[1693804929741,27.901,19.744,19.727,11.72632]
[1693804929946,25.63,19.74,19.727,11.72632]
[1693804930447,20.0,19.739,19.727,11.72632]
[1693804930753,20.0,19.744,19.727,11.72632]
[1693804931135,20.0,19.744,19.728,55.0]
[1693804935455,27.901,19.744,19.728,55.0]
[1693804977978,25.63,19.74,19.728,55.0]
[1693804978174,20.0,19.739,19.728,55.0]
[1693804979289,20.0,19.743,19.728,55.0]
[1693804979479,27.901,19.743,19.728,55.0]
[1693804980191,20.0,19.743,19.728,55.0]
[1693804981490,27.901,19.743,19.728,55.0]
[1693804984692,46.31068187,19.743,19.728,55.0]
[1693804993693,25.63,19.74,19.721,25.63]
[1693804993899,7.904,19.735,19.72,25.63]
[1693804994093,7.904,19.735,19.715,14.90263691]
[1693804994293,7.904,19.735,19.716,31.73287]
[1693804994791,267.31175985,19.739,19.716,85.378858]
[1693804994792,7.903,19.737,19.716,85.378858]
[1693804995001,47.79406831,19.736,19.716,85.378858]
[1693804996408,47.79406831,19.736,19.717,55.0]
[1693804996605,47.79406831,19.736,19.72,25.63]
[1693804996894,47.79406831,19.736,19.721,55.0]
[1693805011510,47.79406831,19.736,19.72,25.63]
[1693805012917,47.79406831,19.736,19.721,55.0]
[1693805015518,66.20375018,19.736,19.721,55.0]
[1693805024129,106.08610311,19.736,19.721,55.0]
[1693805030429,87.67642124,19.736,19.721,55.0]
[1693805040635,39.88235293,19.736,19.721,55.0]
[1693805040834,15.39553752,19.737,19.721,55.0]
[1693805041231,15.39553752,19.737,19.721,66.72989]
[1693805043530,15.39553752,19.737,19.722,11.7293]
[1693805043843,15.39553752,19.737,19.723,55.0]
[1693805048334,33.80521939,19.737,19.723,55.0]
[1693805048547,18.40968187,19.736,19.722,11.7293]
[1693805048746,18.40968187,19.736,19.72,25.63]
[1693805050451,18.40968187,19.736,19.721,55.0]
[1693805051046,18.40968187,19.736,19.71,50.88550551]
[1693805051345,47.79406831,19.735,19.717,20.0]
[1693805051550,18.40968187,19.734,19.715,20.0]
[1693805053047,18.40968187,19.734,19.716,55.0]
[1693805053254,18.40968187,19.734,19.717,20.0]
[1693805053549,18.40968187,19.734,19.718,55.0]
[1693805053749,18.40968187,19.734,19.719,20.0]
[1693805053945,18.40968187,19.734,19.72,55.0]
[1693805056943,18.40968187,19.734,19.719,20.0]
[1693805057150,25.63,19.73,19.7,8.2433]
[1693805057447,67.79406831,19.729,19.703,50.83638447]
[1693805058155,97.2571,19.728,19.708,41.28535225]
[1693805058457,47.79406831,19.727,19.708,41.28535225]
[1693805059559,47.79406831,19.727,19.711,55.0]
[1693805068356,97.2571,19.728,19.711,55.0]
[1693805068670,25.63,19.73,19.712,11.73525]
[1693805068869,20.0,19.729,19.713,55.0]
[1693805069072,20.0,19.729,19.713,66.73465]
[1693805071465,20.0,19.729,19.714,11.73406]
[1693805071673,20.0,19.729,19.715,55.0]
[1693805071881,20.0,19.732,19.715,55.0]
[1693805072671,20.0,19.732,19.715,66.73346]
[1693805075571,25.63,19.73,19.715,66.73346]
[1693805075757,20.0,19.729,19.715,66.73346]
[1693805084261,15.39553752,19.737,19.72,25.63]
[1693805084467,15.39553752,19.737,19.721,55.0]
[1693805089165,15.39553752,19.737,19.721,66.72989]
[1693805089778,15.39553752,19.737,19.722,11.7293]
[1693805089976,15.39553752,19.737,19.723,55.0]
[1693805091874,134.75785638,19.739,19.723,66.7287]
[1693805091875,95.0824,19.739,19.723,66.7287]
[1693805098387,95.0824,19.739,19.724,11.72811]
[1693805098590,95.0824,19.739,19.725,55.0]
[1693805107599,95.0824,19.739,19.725,66.72751]
[1693805107986,42.47929861,19.743,19.73,25.63]
[1693805108190,42.47929861,19.749,19.731,55.0]
[1693805108386,57.78355824,19.749,19.731,55.0]
[1693805108587,91.806,19.748,19.731,55.0]
[1693805114092,91.806,19.748,19.73,25.63]
[1693805115598,91.806,19.748,19.731,55.0]
[1693805164344,99.705,19.748,19.731,55.0]
[1693805164532,91.806,19.748,19.731,55.0]
[1693805169351,99.705,19.748,19.731,55.0]
[1693805169649,91.806,19.748,19.731,55.0]
[1693805187652,91.806,19.748,19.731,54.88697219]
[1693805201471,91.806,19.748,19.732,11.72335]
[1693805201655,91.806,19.748,19.733,55.0]
[1693805204568,26.45618523,19.756,19.733,55.0]
[1693805204778,93.2433,19.755,19.734,20.0]
[1693805204959,93.2433,19.755,19.735,55.0]
[1693805205160,93.2433,19.755,19.736,20.0]
[1693805205357,93.2433,19.755,19.737,55.0]
[1693805205568,93.2433,19.755,19.738,20.0]
[1693805205774,93.2433,19.755,19.739,55.0]
[1693805219192,108.54421184,19.755,19.739,55.0]
[1693805219669,148.51179035,19.755,19.739,55.0]
[1693805222987,108.54421184,19.755,19.739,55.0]
[1693805230188,108.54421184,19.755,19.74,25.63]
[1693805230386,108.54421184,19.755,19.741,55.0]
[1693805239094,108.54421184,19.755,19.738,20.0]
[1693805239296,108.54421184,19.755,19.737,20.0]
[1693805240398,108.54421184,19.755,19.738,55.0]
[1693805240591,108.54421184,19.755,19.74,25.63]
[1693805240896,108.54421184,19.755,19.741,55.0]
[1693805249900,93.2433,19.755,19.741,55.0]
[1693805280621,93.2433,19.755,19.741,94.66362714]
[1693805311352,93.2433,19.755,19.741,106.38163714]
[1693805313243,93.2433,19.755,19.742,11.71741]
[1693805313444,93.2433,19.755,19.743,55.0]
[1693805313956,93.2433,19.755,19.744,20.0]
[1693805314156,15.1474164,19.765,19.745,55.0]
[1693805314360,94.9122,19.765,19.746,20.0]
[1693805314562,94.9122,19.765,19.747,55.0]
[1693805314753,310.65542091,19.767,19.748,20.0]
[1693805314953,2.1130278,19.766,19.749,55.0]
[1693805315162,97.0252278,19.766,19.749,55.0]
[1693805315455,2.1130278,19.766,19.749,55.0]
[1693805321364,2.1130278,19.766,19.75,25.63]
[1693805321664,2.1130278,19.766,19.751,55.0]
[1693805328269,22.1130278,19.769,19.752,11.71148]
[1693805328461,22.1130278,19.769,19.753,55.0]
[1693805328756,22.1130278,19.769,19.753,66.71089]
[1693805332369,22.1130278,19.769,19.754,11.7103]
[1693805332569,22.1130278,19.769,19.755,55.0]
[1693805333580,22.1130278,19.769,19.755,66.7097]
[1693805337079,2.1130278,19.769,19.755,66.7097]
[1693805337375,2.1130278,19.769,19.76,25.63]
[1693805337584,2.1130278,19.772,19.761,55.0]
[1693805338297,92.8451278,19.779,19.761,55.0]
[1693805338683,2.1130278,19.779,19.761,55.0]
[1693805338886,22.1130278,19.779,19.761,55.0]
[1693805339782,22.1130278,19.779,19.761,66.70615]
[1693805339969,37.24511281,19.779,19.761,66.70615]
[1693805347892,37.24511281,19.779,19.762,11.70556]
[1693805348081,37.24511281,19.779,19.763,55.0]
[1693805350379,2.1130278,19.779,19.764,11.70437]
[1693805350585,22.1130278,19.779,19.765,55.0]
[1693805350787,22.1130278,19.779,19.765,66.70378]
[1693805356981,40.51964163,19.779,19.765,11.70378]
[1693805357292,2.1130278,19.777,19.763,39.67223064]
[1693805357478,2.1130278,19.777,19.76,66.80349519]
[1693805357679,2.1130278,19.777,19.76,78.51023519]
[1693805357879,2.1130278,19.777,19.76,98.74654419]
[1693805358391,2.1130278,19.777,19.761,55.0]
[1693805359494,2.1130278,19.777,19.761,66.70615]
[1693805360689,2.1130278,19.778,19.761,66.70615]
[1693805361588,2.1130278,19.778,19.762,11.70556]
[1693805361776,2.1130278,19.778,19.763,55.0]
[1693805364602,2.1130278,19.778,19.764,11.70437]
[1693805364786,2.1130278,19.778,19.765,55.0]
[1693805374802,2.1130278,19.778,19.764,11.70437]
[1693805375101,20.5189961,19.778,19.76,66.80349519]
[1693805375292,20.5189961,19.778,19.76,25.63]
[1693805376498,20.5189961,19.778,19.761,55.0]
[1693805377199,18.4059683,19.777,19.761,55.0]
[1693805377505,2.1130278,19.776,19.756,60.52604956]
[1693805377710,18.4059683,19.775,19.756,72.23515956]
[1693805378005,2.1130278,19.774,19.756,92.47489456]
[1693805378595,2.1130278,19.774,19.756,51.948845]
[1693805378795,25.63,19.77,19.757,20.0]
[1693805379006,2.1130278,19.769,19.757,20.0]
[1693805379393,2.1130278,19.769,19.754,20.0]
[1693805379706,2.1130278,19.769,19.754,31.7103]
[1693805380005,2.1130278,19.769,19.754,57.3403]
[1693805380202,25.63,19.77,19.755,55.0]
[1693805380409,25.63,19.77,19.756,20.0]
[1693805380704,25.63,19.77,19.757,55.0]
[1693805381006,25.63,19.77,19.758,20.0]
[1693805381302,25.63,19.77,19.759,55.0]
[1693805388509,2.1130278,19.769,19.759,55.0]
[1693805388696,25.63,19.77,19.759,55.0]
[1693805389096,2.1130278,19.769,19.759,55.0]
[1693805403822,2.1130278,19.773,19.759,55.0]
[1693805404518,2.1130278,19.776,19.759,55.0]
[1693805407331,42.95066057,19.776,19.759,55.0]
[1693805415036,2.1130278,19.776,19.759,55.0]
[1693805415236,2.1130278,19.776,19.76,25.63]
[1693805415438,2.1130278,19.777,19.761,55.0]
[1693805415736,2.1130278,19.778,19.761,55.0]
[1693805425341,2.1130278,19.778,19.76,25.63]
[1693805425647,18.4059683,19.777,19.759,11.70733]
[1693805425848,25.63,19.77,19.758,20.0]
[1693805426143,2.1130278,19.769,19.757,20.0]
[1693805426947,2.1130278,19.769,19.758,55.0]
[1693805427151,2.1130278,19.769,19.759,20.0]
[1693805427446,25.63,19.77,19.76,55.0]
[1693805427641,2.1130278,19.769,19.76,55.0]
[1693805427843,25.63,19.77,19.76,55.0]
[1693805428042,2.1130278,19.769,19.76,55.0]
[1693805429536,25.63,19.77,19.76,55.0]
[1693805430751,2.1130278,19.769,19.76,55.0]
[1693805440655,2.1130278,19.769,19.759,20.0]
[1693805440858,2.1130278,19.769,19.76,55.0]
[1693805442944,2.1130278,19.769,19.756,20.0]
[1693805443144,2.1130278,19.769,19.757,55.0]
[1693805443350,2.1130278,19.769,19.758,20.0]
[1693805443553,2.1130278,19.769,19.759,55.0]
[1693805456969,2.1130278,19.769,19.752,104.63621111]
[1693805457273,25.63,19.76,19.74,25.63]
[1693805457572,25.63,19.76,19.746,20.0]
[1693805458184,25.63,19.76,19.741,20.0]
[1693805458398,25.63,19.76,19.742,25.25550551]
[1693805458605,25.63,19.76,19.743,20.0]
[1693805458781,25.63,19.76,19.744,55.0]
[1693805459197,25.63,19.76,19.745,20.0]
[1693805459498,25.63,19.76,19.746,55.0]
[1693805459690,25.63,19.76,19.747,20.0]
[1693805459889,25.63,19.76,19.748,55.0]
[1693805460196,25.63,19.76,19.749,20.0]
[1693805460400,25.63,19.76,19.75,55.0]
[1693805478310,25.63,19.76,19.75,54.5]
[1693805479916,2.1130278,19.759,19.75,54.5]
[1693805484505,2.6130278,19.767,19.75,54.5]
[1693805485422,2.6130278,19.767,19.75,80.13]
[1693805486618,2.6130278,19.767,19.75,91.84267]
[1693805495124,2.6130278,19.767,19.751,11.71208]
[1693805495325,2.6130278,19.767,19.752,55.0]
[1693805501028,2.6130278,19.767,19.753,11.71089]
[1693805501228,2.6130278,19.767,19.754,55.0]
[1693805503229,2.6130278,19.769,19.754,55.0]
[1693805503534,22.6130278,19.769,19.754,66.7103]
[1693805504027,22.6130278,19.769,19.755,11.7097]
[1693805504228,22.6130278,19.769,19.756,55.0]
[1693805505529,2.6130278,19.769,19.756,66.70911]
[1693805505832,2.6130278,19.774,19.76,25.63]
[1693805506033,2.6130278,19.777,19.761,55.0]
[1693805530345,22.6130278,19.779,19.761,66.70615]
[1693805560454,22.6130278,19.779,19.761,11.70615]
[1693805560771,25.63,19.77,19.761,11.70615]
[1693805560968,2.6130278,19.769,19.761,11.70615]
[1693805561562,2.6130278,19.769,19.757,20.0]
[1693805561776,2.6130278,19.769,19.754,20.0]
[1693805562362,2.6130278,19.769,19.755,55.0]
[1693805562561,2.6130278,19.769,19.756,20.0]
[1693805562761,2.6130278,19.769,19.757,55.0]
[1693805562966,25.63,19.77,19.758,20.0]
[1693805563161,25.63,19.77,19.759,55.0]
[1693805563668,2.6130278,19.769,19.758,20.0]
[1693805563870,2.6130278,19.769,19.754,20.0]
[1693805564857,2.6130278,19.769,19.755,55.0]
[1693805565063,2.6130278,19.769,19.756,20.0]
[1693805565263,2.6130278,19.769,19.757,55.0]
[1693805565771,2.6130278,19.769,19.758,20.0]
[1693805565965,2.6130278,19.769,19.759,55.0]
[1693805577287,2.6130278,19.769,19.74,25.63]
[1693805577481,77.6130278,19.769,19.746,45.25550551]
[1693805578080,91.3845,19.768,19.746,45.25550551]
[1693805578278,2.6130278,19.767,19.746,45.25550551]
[1693805578584,2.6130278,19.767,19.747,55.0]
[1693805578893,2.6130278,19.767,19.748,20.0]
[1693805579087,2.6130278,19.767,19.749,55.0]
[1693805579592,2.6130278,19.768,19.749,55.0]
[1693805579794,57.6130278,19.768,19.749,55.0]
[1693805580175,2.6130278,19.768,19.749,55.0]
[1693805580394,91.3845,19.767,19.749,55.0]
[1693805580690,2.6130278,19.766,19.749,55.0]
[1693805580986,2.6130278,19.768,19.749,55.0]
[1693805583092,25.63,19.76,19.749,55.0]
[1693805589391,2.6130278,19.768,19.749,55.0]
[1693805614211,25.63,19.76,19.749,55.0]
[1693805624316,2.6130278,19.768,19.749,55.0]
[1693805626021,2.6130278,19.768,19.75,25.63]
[1693805626224,2.6130278,19.768,19.751,55.0]
[1693805626406,2.6130278,19.768,19.752,45.25550551]
[1693805626612,2.6130278,19.768,19.753,55.0]
[1693805626812,2.6130278,19.768,19.754,45.25550551]
[1693805627024,2.6130278,19.769,19.755,55.0]
[1693805627326,2.6130278,19.769,19.756,45.25550551]
[1693805627520,2.6130278,19.769,19.757,55.0]
[1693805627717,2.6130278,19.769,19.758,20.0]
[1693805627919,2.6130278,19.769,19.759,55.0]
[1693805628627,25.63,19.77,19.759,55.0]
[1693805629125,2.6130278,19.769,19.759,55.0]
[1693805629924,25.63,19.77,19.759,55.0]
[1693805630721,2.6130278,19.769,19.759,55.0]
[1693805631125,25.63,19.77,19.759,55.0]
[1693805634024,2.6130278,19.769,19.759,55.0]
[1693805672557,2.6130278,19.777,19.76,25.63]
[1693805672768,2.6130278,19.777,19.761,55.0]
[1693805673960,22.6130278,19.779,19.761,55.0]
[1693805680458,18.4059683,19.778,19.761,55.0]
[1693805680662,2.6130278,19.777,19.76,55.0]
[1693805690175,2.6130278,19.777,19.756,25.25550551]
[1693805690176,25.63,19.77,19.756,25.25550551]
[1693805690476,2.6130278,19.769,19.757,20.0]
[1693805691866,2.6130278,19.769,19.755,20.0]
[1693805692361,2.6130278,19.769,19.756,55.0]
[1693805692567,2.6130278,19.769,19.757,20.0]
[1693805692769,2.6130278,19.769,19.758,55.0]
[1693805693280,2.6130278,19.769,19.759,20.0]
[1693805693477,2.6130278,19.769,19.76,55.0]
[1693805694577,2.6130278,19.769,19.754,15.36722305]
[1693805694791,22.6130278,19.769,19.755,55.0]
[1693805696679,2.6130278,19.769,19.755,55.0]
[1693805696882,22.6130278,19.769,19.755,55.0]
[1693805700676,22.6130278,19.769,19.751,86.97313235]
[1693805700873,22.6130278,19.769,19.751,46.345602]
[1693805701384,22.6130278,19.769,19.745,50.55134837]
[1693805701989,22.6130278,19.769,19.751,55.0]
[1693805718897,22.6130278,19.769,19.752,55.0]
[1693805719088,22.6130278,19.769,19.75,55.0]
[1693805721881,22.6130278,19.769,19.749,55.0]
[1693805723400,25.63,19.76,19.748,40.5670886]
[1693805723698,25.63,19.76,19.749,20.0]
[1693805724496,25.63,19.76,19.747,45.63]
[1693805724699,25.63,19.76,19.748,55.0]
[1693805724995,25.63,19.76,19.749,20.0]
[1693805725188,25.63,19.76,19.75,55.0]
[1693805725587,2.6130278,19.759,19.75,55.0]
[1693805725983,25.63,19.76,19.75,55.0]
[1693805726193,2.6130278,19.759,19.75,55.0]
[1693805726593,25.63,19.76,19.75,55.0]
[1693805728294,2.6130278,19.759,19.75,55.0]
[1693805728902,25.63,19.76,19.75,55.0]
[1693805731200,2.6130278,19.759,19.75,55.0]
[1693805732903,25.63,19.76,19.75,55.0]
[1693805733800,2.6130278,19.759,19.75,55.0]
[1693805735198,25.63,19.76,19.75,55.0]
[1693805737083,2.6130278,19.759,19.75,55.0]
[1693805737585,25.63,19.76,19.75,55.0]
[1693805758809,2.6130278,19.759,19.75,55.0]
[1693805759016,25.63,19.76,19.75,55.0]
[1693805759413,2.6130278,19.759,19.75,55.0]
[1693805767615,22.6130278,19.759,19.744,25.63]
[1693805767817,25.63,19.75,19.744,25.63]
[1693805768012,2.6130278,19.749,19.744,25.63]
[1693805768325,22.6130278,19.749,19.744,25.63]
[1693805770214,2.6130278,19.747,19.744,25.63]
[1693805770416,2.6130278,19.747,19.744,2.52804101]
[1693805770616,2.6130278,19.747,19.724,20.0]
[1693805770916,25.63,19.74,19.724,45.25550551]
[1693805771322,25.63,19.74,19.725,55.0]
[1693805771525,25.63,19.74,19.726,20.0]
[1693805771727,25.63,19.74,19.727,55.0]
[1693805771929,25.63,19.74,19.728,20.0]
[1693805772130,25.63,19.74,19.729,55.0]
[1693805798535,25.63,19.74,19.722,25.25550551]
[1693805798738,20.0,19.739,19.716,55.0]
[1693805798938,110.8514,19.739,19.717,45.25550551]
[1693805799134,110.8514,19.739,19.718,25.25550551]
[1693805799335,110.8514,19.739,19.719,20.0]
[1693805800056,110.8514,19.739,19.72,55.0]
[1693805803534,110.8514,19.739,19.721,25.25550551]
[1693805803738,110.8514,19.739,19.722,55.0]
[1693805803940,110.8514,19.739,19.722,80.25550551]
[1693805807052,110.8514,19.739,19.722,55.0]
[1693805807252,110.8514,19.739,19.721,55.0]
[1693805816543,110.8514,19.739,19.721,80.25550551]
[1693805817345,90.8514,19.739,19.722,25.25550551]
[1693805817540,90.8514,19.739,19.723,55.0]
[1693805821249,25.63,19.74,19.723,55.0]
[1693805821446,45.34015903,19.745,19.724,25.25550551]
[1693805821655,4.94461036,19.744,19.725,55.0]
[1693805821851,4.94461036,19.744,19.726,20.0]
[1693805822055,4.94461036,19.744,19.727,55.0]
[1693805822262,4.94461036,19.744,19.728,20.0]
[1693805822465,4.94461036,19.744,19.729,55.0]
[1693805823566,4.94461036,19.745,19.729,55.0]
[1693805825763,4.94461036,19.748,19.73,25.63]
[1693805826067,4.94461036,19.748,19.731,55.0]
[1693805891115,4.94461036,19.748,19.73,25.63]
[1693805891316,4.94461036,19.748,19.728,93.243283]
[1693805891317,12.84361036,19.748,19.728,27.7146]
[1693805891518,25.63,19.74,19.728,27.7146]
[1693805892035,25.63,19.74,19.728,20.0]
[1693805892212,25.63,19.74,19.724,20.0]
[1693805892416,25.63,19.74,19.725,55.0]
[1693805892617,25.63,19.74,19.726,45.63]
[1693805892821,25.63,19.74,19.727,55.0]
[1693805893235,25.63,19.74,19.728,20.0]
[1693805893437,25.63,19.74,19.729,55.0]
[1693805901449,25.63,19.74,19.726,25.63]
[1693805901643,20.0,19.739,19.723,11.7287]
[1693805901950,20.0,19.739,19.716,25.25550551]
[1693805902146,20.0,19.739,19.718,50.102708]
[1693805902857,20.0,19.739,19.721,55.0]
[1693805903433,27.903,19.739,19.721,55.0]
[1693805903839,78.00570793,19.739,19.721,55.0]
[1693805904741,70.10270793,19.739,19.721,55.0]
[1693805905239,70.10270793,19.739,19.716,25.25550551]
[1693805905432,70.10270793,19.739,19.717,20.0]
[1693805905635,161.64470793,19.739,19.717,45.25550551]
[1693805906552,161.64470793,19.739,19.718,55.0]
[1693805906847,161.64470793,19.739,19.719,20.0]
[1693805907053,161.64470793,19.739,19.72,55.0]
[1693805908253,141.64470793,19.739,19.72,55.0]
[1693805913845,156.61276066,19.739,19.72,55.0]
[1693805914558,25.63,19.73,19.72,55.0]
[1693805914860,58.00570793,19.738,19.72,55.0]
[1693805916172,50.10270793,19.738,19.72,55.0]
[1693805927663,58.00570793,19.738,19.72,55.0]
[1693805929274,50.10270793,19.738,19.72,55.0]
[1693805934371,50.10270793,19.738,19.72,105.88550551]
[1693805935168,50.10270793,19.738,19.721,25.25550551]
[1693805935370,50.10270793,19.738,19.722,55.0]
[1693805946285,50.10270793,19.738,19.721,55.0]
[1693805946795,58.00570793,19.738,19.721,55.0]
[1693805947385,58.00570793,19.738,19.72,25.63]
[1693805948771,58.00570793,19.738,19.721,55.0]
[1693805956891,58.00570793,19.738,19.72,55.0]
[1693805968096,50.10270793,19.738,19.72,55.0]
[1693805968597,50.10270793,19.738,19.72,80.63]
[1693805980824,91.542,19.739,19.72,117.61599551]
[1693805981029,91.542,19.739,19.721,25.25550551]
[1693805981216,91.542,19.739,19.722,55.0]
[1693805982422,91.542,19.739,19.722,80.25550551]
[1693805985135,91.542,19.739,19.722,55.0]
[1693805985447,91.542,19.739,19.72,37.36049]
[1693805985448,91.542,19.739,19.723,25.25550551]
[1693805985645,91.542,19.739,19.724,55.0]
[1693805992054,25.63,19.74,19.724,55.0]
[1693805992243,20.0,19.739,19.724,66.72811]
[1693805992941,25.63,19.74,19.724,66.72811]
[1693805993255,20.0,19.739,19.724,66.72811]
[1693805999544,20.0,19.739,19.724,107.25117132]
[1693806003556,416.79513676,19.744,19.724,107.25117132]
[1693806003858,4.94461036,19.745,19.73,25.63]
[1693806004049,4.94461036,19.745,19.731,55.0]
[1693806026576,4.94461036,19.745,19.731,96.55296502]
[1693806026868,4.94461036,19.748,19.731,96.55296502]
[1693806034380,4.94461036,19.748,19.73,25.63]
[1693806035677,4.94461036,19.748,19.731,55.0]
[1693806036373,23.34806953,19.748,19.731,55.0]
[1693806036574,128.73276034,19.748,19.731,55.0]
[1693806037471,18.40345917,19.747,19.731,55.0]
[1693806037670,4.94461036,19.746,19.731,55.0]
[1693806048168,25.63,19.74,19.725,36.98301551]
[1693806048487,20.0,19.739,19.722,41.08611954]
[1693806048675,20.0,19.739,19.72,25.63]
[1693806048875,20.0,19.739,19.72,62.61599551]
[1693806049379,20.0,19.739,19.721,55.0]
[1693806054184,20.0,19.739,19.72,102.7822398]
[1693806055379,20.0,19.739,19.721,55.0]
[1693806074394,20.0,19.739,19.722,25.25550551]
[1693806074592,20.0,19.739,19.723,55.0]
[1693806074792,20.0,19.739,19.723,80.25550551]
[1693806079701,20.0,19.739,19.724,25.25550551]
[1693806079911,20.0,19.739,19.725,55.0]
[1693806081391,103.7140232,19.744,19.725,55.0]
[1693806081705,2.47322177,19.744,19.73,25.63]
[1693806081999,4.94461036,19.748,19.731,55.0]
[1693806095311,12.84361036,19.748,19.731,55.0]
[1693806095511,4.94461036,19.748,19.731,55.0]
[1693806105419,4.94461036,19.748,19.73,25.63]
[1693806105618,75.78073188,19.748,19.726,7.4893]
[1693806105926,75.78073188,19.748,19.727,20.0]
[1693806106120,92.8883,19.747,19.727,20.0]
[1693806106325,4.94461036,19.746,19.726,20.0]
[1693806106711,12.84461036,19.746,19.726,20.0]
[1693806106911,12.84461036,19.746,19.727,55.0]
[1693806107217,12.84461036,19.746,19.728,20.0]